bitfinex/quotes_ETHUSD_20250428
["timestamp","ask_amount","ask_price","bid_price","bid_amount"]
[1745814248419,1.05492749,1791.5,1791.1,0.2668]
[1745814248717,1.05492749,1791.5,1791.2,0.11291601]
[1745814248924,0.7827,1791.9,1791.3,0.2668]
[1745814249221,0.63078829,1791.7,1791.4,0.11104972]
[1745814250034,0.63078829,1791.7,1791.5,0.2668]
[1745814250189,0.63078829,1791.7,1791.6,0.11100144]
[1745814251829,1.41348829,1791.9,1791.6,0.11100144]
[1745814252031,0.63078829,1791.9,1791.6,0.11100144]
[1745814253717,0.41847831,1792.0,1791.6,0.11100144]
[1745814253893,0.63078829,1792.0,1791.6,0.11100144]
[1745814256096,0.63078829,1792.0,1791.6,4.82800144]
[1745814256829,1.39928829,1791.8,1791.7,4.717]
[1745814257035,1.39928829,1791.8,1791.7,4.82332336]
[1745814258601,0.63078829,1791.8,1791.7,4.82332336]
[1745814259198,0.63078829,1791.8,1791.7,4.717]
[1745814261196,0.63078829,1791.8,1791.3,0.2668]
[1745814261423,0.63078829,1791.8,1791.4,4.716]
[1745814261620,0.63078829,1791.8,1791.5,0.2668]
[1745814264538,0.63078829,1791.8,1791.4,4.716]
[1745814264842,0.63078829,1791.8,1791.4,4.9828]
[1745814265170,0.8245,1791.7,1791.5,4.716]
[1745814265477,0.8245,1791.7,1791.4,0.2668]
[1745814265649,0.8245,1791.7,1791.5,4.716]
[1745814266646,0.63078829,1791.8,1791.5,4.716]
[1745814270075,1.04598129,1792.0,1791.6,5.84840068]
[1745814270552,0.63078829,1792.0,1791.6,5.84840068]
[1745814275215,0.63078829,1792.0,1791.6,0.2668]
[1745814276208,0.63078829,1792.0,1791.7,4.715]
[1745814276421,0.63078829,1792.0,1791.7,10.29626585]
[1745814276710,1.24815234,1792.2,1791.8,0.2668]
[1745814276711,1.05444063,1792.2,1791.8,0.2668]
[1745814277179,0.63078829,1792.2,1791.8,0.2668]
[1745814278513,0.31364251,1792.1,1791.8,0.2668]
[1745814278701,0.63078829,1792.0,1791.8,0.2668]
[1745814279979,0.63078829,1792.0,1791.7,4.715]
[1745814280231,1.38988829,1792.0,1791.7,4.715]
[1745814280844,0.63078829,1792.0,1791.7,4.715]
[1745814283431,0.63078829,1792.0,1791.7,10.29626763]
[1745814284430,0.31369796,1792.1,1791.9,5.58046765]
[1745814284725,1.2068183,1792.4,1791.9,5.8473164]
[1745814284927,1.2068183,1792.4,1792.0,5.58022074]
[1745814285094,1.2068183,1792.4,1792.1,4.715]
[1745814286010,0.63078829,1792.3,1792.1,4.715]
[1745814287309,1.83760659,1792.4,1792.1,4.715]
[1745814294576,1.03620659,1792.4,1792.1,4.715]
[1745814296473,1.03620659,1792.4,1791.9,5.84725262]
[1745814296677,0.63078829,1792.2,1792.0,4.713]
[1745814296858,0.63078829,1792.2,1792.1,4.713]
[1745814297874,0.63078829,1792.2,1791.7,0.2668]
[1745814298269,0.63078829,1792.2,1791.8,4.713]
[1745814298467,0.6,1792.1,1791.8,4.713]
[1745814300076,1.3518,1792.1,1791.7,0.2668]
[1745814300380,1.3518,1792.1,1791.6,5.5813563]
[1745814300381,0.63078829,1792.0,1791.4,5.84883793]
[1745814300549,0.63078829,1792.0,1791.7,4.713]
[1745814302845,0.6,1792.1,1791.7,4.713]
[1745814303666,0.6,1792.1,1791.8,0.2668]
[1745814303880,0.6,1792.1,1791.8,5.84760127]
[1745814304056,1.78800659,1792.4,1791.8,5.84755035]
[1745814304264,1.78800659,1792.4,1791.9,5.58054582]
[1745814304654,1.78800659,1792.4,1792.0,0.2668]
[1745814304879,1.78800659,1792.4,1792.1,4.713]
[1745814308787,0.4054183,1792.4,1792.1,4.713]
[1745814309093,0.63078829,1792.3,1792.1,4.713]
[1745814311890,0.63078829,1792.3,1792.1,4.713]
[1745814315101,0.91898289,1792.3,1792.1,4.713]
[1745814316302,0.2881946,1792.3,1792.1,10.29300034]
[1745814316798,0.2881946,1792.3,1792.1,4.713]
[1745814321007,0.2881946,1792.3,1792.0,0.2668]
[1745814321008,0.91898289,1792.3,1792.2,4.713]
[1745814322072,0.2881946,1792.3,1792.2,4.713]
[1745814323008,0.91898289,1792.3,1792.2,4.713]
[1745814324101,0.91898289,1792.3,1792.2,4.712]
[1745814325470,1.48840231,1792.3,1792.2,4.712]
[1745814326872,1.48840231,1792.3,1791.9,5.84726859]
[1745814327066,1.48840231,1792.3,1792.2,4.712]
[1745814327367,0.2881946,1792.3,1792.2,4.9788]
[1745814327570,0.2881946,1792.3,1792.2,10.5585344]
[1745814327789,0.2881946,1792.3,1792.2,13.5585344]
[1745814327968,0.2881946,1792.3,1792.2,14.1085344]
[1745814328170,0.2881946,1792.3,1792.2,8.8465344]
[1745814328365,0.2881946,1792.3,1792.2,13.5585344]
[1745814329319,0.2881946,1792.3,1792.2,13.5575344]
[1745814332850,0.2881946,1792.3,1792.2,0.2668]
[1745814332976,0.2881946,1792.3,1792.2,4.9778]
[1745814333429,0.2881946,1792.3,1792.2,5.8465344]
[1745814333607,0.2881946,1792.3,1792.2,10.5575344]
[1745814334925,0.2881946,1792.3,1792.2,4.711]
[1745814335615,0.2881946,1792.3,1792.2,10.2907344]
[1745814336196,0.2881946,1792.3,1792.2,10.5575344]
[1745814337832,0.2881946,1792.3,1792.2,11.18727084]
[1745814338010,0.2881946,1792.3,1792.2,10.5575344]
[1745814341534,0.2881946,1792.3,1792.2,5.8465344]
[1745814341721,0.2881946,1792.3,1792.2,10.2907344]
[1745814342734,0.2881946,1792.3,1792.2,4.711]
[1745814343036,0.2881946,1792.3,1792.0,5.58010911]
[1745814343206,0.2881946,1792.3,1792.1,4.711]
[1745814344932,0.2881946,1792.3,1792.1,10.29098771]
[1745814346430,0.2881946,1792.3,1792.2,5.5797344]
[1745814347229,0.2881946,1792.3,1792.1,10.29086747]
[1745814348021,0.2881946,1792.3,1792.1,10.2908332]
[1745814348734,0.2881946,1792.3,1792.2,5.5797344]
[1745814348935,0.2881946,1792.3,1792.2,5.8465344]
[1745814349934,0.2881946,1792.3,1792.2,4.711]
[1745814350324,0.2881946,1792.3,1792.2,10.2907344]
[1745814352534,0.2881946,1792.3,1792.2,4.71]
[1745814354313,0.2881946,1792.3,1792.1,5.57981555]
[1745814354532,1.0993946,1792.3,1792.2,4.71]
[1745814354729,0.2881946,1792.3,1792.2,10.2897344]
[1745814358407,0.2881946,1792.3,1792.2,10.8397344]
[1745814358611,0.2881946,1792.3,1792.2,11.73627084]
[1745814359155,0.2881946,1792.3,1792.2,11.1065344]
[1745814360057,0.2881946,1792.3,1792.2,10.5565344]
[1745814360655,0.2881946,1792.3,1792.2,5.5797344]
[1745814360854,0.2881946,1792.3,1792.2,10.2897344]
[1745814364938,0.2881946,1792.3,1792.2,10.5565344]
[1745814368270,0.2881946,1792.3,1792.2,10.2897344]
[1745814368767,0.2881946,1792.3,1792.0,5.84699497]
[1745814368934,0.2881946,1792.3,1792.2,4.71]
[1745814369135,0.2881946,1792.3,1792.2,10.2897344]
[1745814370145,0.2881946,1792.3,1792.2,5.5797344]
[1745814370384,0.2881946,1792.3,1792.2,10.2897344]
[1745814374436,0.2881946,1792.3,1792.2,10.5565344]
[1745814376870,0.2881946,1792.3,1792.2,4.71]
[1745814377251,0.2881946,1792.3,1792.2,10.2897344]
[1745814377575,0.2881946,1792.3,1792.1,5.57990083]
[1745814377761,0.2881946,1792.3,1792.2,4.71]
[1745814378943,0.2881946,1792.3,1792.2,10.2897344]
[1745814379162,0.2881946,1792.3,1792.2,5.5797344]
[1745814379368,0.2881946,1792.3,1792.2,10.2897344]
[1745814382450,0.2881946,1792.3,1792.2,10.5565344]
[1745814389282,0.2881946,1792.3,1792.2,10.2897344]
[1745814393481,0.2881946,1792.3,1792.2,10.5565344]
[1745814395255,0.2881946,1792.3,1792.2,13.5565344]
[1745814396072,0.2881946,1792.3,1792.2,14.1065344]
[1745814397410,0.2881946,1792.3,1792.2,13.5565344]
[1745814400009,0.2881946,1792.3,1792.2,14.1065344]
[1745814400520,0.2881946,1792.3,1792.2,13.5565344]
[1745814402044,0.2881946,1792.3,1792.2,14.1065344]
[1745814402347,0.2881946,1792.3,1792.2,13.5565344]
[1745814402827,0.2881946,1792.3,1792.2,13.2897344]
[1745814405535,1.1075946,1792.3,1792.0,17.0434229]
[1745814405825,1.1075946,1792.3,1792.2,4.732]
[1745814406899,1.1075946,1792.3,1792.0,22.62374114]
[1745814407248,0.7651,1792.2,1792.1,4.732]
[1745814408046,1.0532946,1792.2,1792.1,10.31204575]
[1745814409014,1.0532946,1792.2,1792.1,4.732]
[1745814419544,1.0532946,1792.2,1792.1,10.31204575]
[1745814419745,0.2881946,1792.2,1792.1,10.31204575]
[1745814424230,0.35818318,1792.5,1792.4,5.5791118]
[1745814427739,0.35818318,1792.5,1792.4,8.5791118]
[1745814428854,0.35818318,1792.5,1792.4,13.2991118]
[1745814429232,0.30818318,1792.5,1792.4,13.2991118]
[1745814430257,0.30818318,1792.5,1792.4,13.72251577]
[1745814430781,1e-08,1792.5,1792.4,15.16905221]
[1745814430931,0.1,1792.8,1792.7,6.39497816]
[1745814431128,0.40734,1793.7,1792.7,0.2668]
[1745814431327,1.22704,1793.7,1793.3,5.57608182]
[1745814431524,1.17704,1793.7,1793.4,4.72]
[1745814431728,1.17704,1793.7,1793.2,0.2668]
[1745814431729,0.8216,1793.6,1793.1,0.55]
[1745814431971,0.8216,1793.6,1793.2,4.72]
[1745814432130,0.8216,1793.6,1793.3,4.72]
[1745814432330,0.8216,1793.6,1793.4,5.57581154]
[1745814432562,0.8216,1793.6,1793.5,5.57568999]
[1745814432870,0.35734,1793.7,1793.6,5.57537912]
[1745814434876,0.35734,1793.7,1793.5,5.57567448]
[1745814435586,0.35734,1793.7,1791.4,8.37651358]
[1745814435790,0.35734,1793.7,1672.0,0.005]
[1745814435791,0.826,1793.6,1792.9,4.9858]
[1745814435992,0.826,1793.6,1793.2,5.57658334]
[1745814436780,0.826,1793.6,1793.1,5.57677304]
[1745814437287,0.826,1793.6,1793.2,5.57660976]
[1745814437474,0.826,1793.6,1793.2,5.57658449]
[1745814437847,0.826,1793.6,1793.0,5.57708724]
[1745814438047,0.826,1793.6,1793.2,5.57661433]
[1745814438288,0.826,1793.6,1793.3,4.718]
[1745814444860,0.8319,1793.4,1793.3,4.765]
[1745814447504,0.8319,1793.4,1793.2,4.765]
[1745814447803,1.43383644,1793.3,1793.2,4.765]
[1745814451584,0.8041,1793.3,1793.2,4.765]
[1745814453578,1.43383644,1793.3,1793.2,4.765]
[1745814455905,1.43383644,1793.3,1792.8,5.57785217]
[1745814456199,1.43383644,1793.3,1792.9,4.765]
[1745814457282,0.8041,1793.3,1792.9,10.34239998]
[1745814457482,0.8036,1793.5,1793.0,5.84391763]
[1745814457928,0.8036,1793.5,1793.0,0.2668]
[1745814458085,1.4036,1793.5,1793.0,0.2668]
[1745814458285,1.4036,1793.5,1793.0,5.84390541]
[1745814458532,1.4036,1793.5,1793.0,0.2668]
[1745814458889,0.8036,1793.4,1792.9,4.765]
[1745814459091,0.8036,1793.4,1792.9,10.34253668]
[1745814459480,0.8036,1793.4,1793.0,10.3420855]
[1745814459682,0.8036,1793.4,1793.1,5.57669715]
[1745814460006,0.8036,1793.4,1793.1,5.84349715]
[1745814463287,0.8181,1793.6,1793.1,5.84347289]
[1745814464621,0.8181,1793.6,1793.2,5.5766162]
[1745814465223,0.35734,1793.7,1793.3,5.57607331]
[1745814465430,0.35734,1793.7,1793.4,4.765]
[1745814465837,0.35734,1793.7,1793.4,10.34100038]
[1745814466135,0.35734,1793.7,1793.4,4.765]
[1745814467495,0.35734,1793.7,1793.4,10.34098324]
[1745814468246,0.35734,1793.7,1793.4,4.765]
[1745814469179,0.35734,1793.7,1793.4,10.34099048]
[1745814469533,0.35734,1793.7,1793.5,5.57567976]
[1745814471138,0.35734,1793.7,1793.6,5.57537912]
[1745814471467,0.35734,1793.7,1793.4,5.0318]
[1745814471468,0.35734,1793.7,1793.4,10.60752256]
[1745814471774,0.35734,1793.7,1793.4,16.1832847]
[1745814471931,0.35734,1793.7,1793.4,5.0318]
[1745814472133,0.35734,1793.7,1793.4,10.34083768]
[1745814472566,0.35734,1793.7,1793.4,10.34076332]
[1745814472768,0.35734,1793.7,1793.4,15.91653948]
[1745814473063,0.35734,1793.7,1793.5,5.57563849]
[1745814473562,0.35734,1793.7,1793.4,10.3408002]
[1745814473762,1.18154,1793.7,1793.4,10.3408002]
[1745814474065,1.18154,1793.7,1793.4,10.34078733]
[1745814474235,1.18154,1793.7,1793.5,5.57557907]
[1745814475988,1.18154,1793.7,1793.5,5.57552731]
[1745814476279,1.18154,1793.7,1793.4,15.91664412]
[1745814476466,1.18154,1793.7,1793.4,4.765]
[1745814476645,1.18154,1793.7,1793.4,10.34098218]
[1745814476982,1.18154,1793.7,1793.4,4.765]
[1745814477651,1.18154,1793.7,1793.4,10.34099188]
[1745814478165,1.18154,1793.7,1793.5,5.57568435]
[1745814479484,0.35734,1793.7,1793.6,5.84217912]
[1745814479688,0.35734,1793.7,1793.6,5.57537912]
[1745814481173,0.30734,1793.7,1793.6,5.57537912]
[1745814482159,0.30734,1793.7,1793.6,6.39217912]
[1745814485687,0.30734,1793.7,1793.6,11.13817912]
[1745814485887,0.30734,1793.7,1793.6,10.58817912]
[1745814486285,0.30734,1793.7,1793.6,4.746]
[1745814486590,0.30734,1793.7,1793.6,10.32137912]
[1745814487985,0.30734,1793.7,1793.6,4.746]
[1745814488185,1.10584,1793.7,1793.6,4.746]
[1745814488390,1.10584,1793.7,1793.4,11.41850801]
[1745814488686,1.10584,1793.7,1793.6,4.746]
[1745814488885,0.30734,1793.7,1793.6,4.746]
[1745814489288,0.30734,1793.7,1793.6,10.32137912]
[1745814489582,0.30734,1793.7,1793.6,10.27137912]
[1745814490202,0.30734,1793.7,1793.6,10.53817912]
[1745814491093,0.30734,1793.7,1793.6,5.84217912]
[1745814491326,0.30734,1793.7,1793.6,10.58817912]
[1745814492418,0.30734,1793.7,1793.6,10.32137912]
[1745814492612,0.30734,1793.7,1793.6,4.746]
[1745814492817,0.30734,1793.7,1793.6,10.32137912]
[1745814493217,0.30734,1793.7,1793.6,8.64876538]
[1745814493525,0.30734,1793.7,1793.6,4.746]
[1745814493729,0.30734,1793.7,1793.6,8.64876538]
[1745814495032,0.30734,1793.7,1793.6,8.91556538]
[1745814497037,0.30734,1793.7,1793.6,8.64876538]
[1745814497398,0.30734,1793.7,1793.6,8.59876538]
[1745814497704,0.30734,1793.7,1793.1,7.46181437]
[1745814497705,1.11114,1793.7,1793.1,7.46181437]
[1745814498043,0.30734,1793.7,1793.6,3.90276538]
[1745814498258,0.30734,1793.7,1793.6,8.64876538]
[1745814500062,0.30734,1793.7,1793.6,8.91556538]
[1745814501418,0.30734,1793.7,1793.6,9.46556538]
[1745814504758,0.30734,1793.7,1793.6,4.16956538]
[1745814505058,0.30734,1793.7,1793.6,8.91456538]
[1745814507686,0.30734,1793.7,1793.6,9.46456538]
[1745814508346,1.2656,1794.5,1793.9,0.2668]
[1745814508553,1.2656,1794.5,1794.4,3.90102541]
[1745814508752,1.2656,1794.5,1794.4,8.68402541]
[1745814508978,1.2656,1794.5,1794.4,4.783]
[1745814509289,0.5,1794.5,1794.4,8.68402541]
[1745814509514,0.5,1794.5,1794.4,4.783]
[1745814509893,1.2643,1794.5,1794.4,4.783]
[1745814510053,1.2643,1794.5,1794.4,8.68402541]
[1745814510771,1.2643,1794.5,1794.4,4.783]
[1745814511183,1.2643,1794.5,1794.4,8.68402541]
[1745814511488,0.5,1794.5,1794.4,8.68402541]
[1745814512285,0.5,1794.5,1794.4,4.783]
[1745814512873,1.2504,1794.5,1794.4,4.783]
[1745814516127,1.2504,1794.5,1794.2,3.90145446]
[1745814516290,1.2587,1794.5,1794.4,4.782]
[1745814517318,0.8042,1794.4,1793.7,3.2668]
[1745814517519,0.8042,1794.4,1794.0,3.90189482]
[1745814518886,0.8042,1794.4,1793.9,3.90191265]
[1745814519095,0.8042,1794.4,1794.0,3.90184385]
[1745814519722,0.8042,1794.4,1794.1,4.782]
[1745814521241,0.8042,1794.4,1794.2,3.90137723]
[1745814521536,0.8042,1794.4,1794.1,8.68354419]
[1745814521846,0.8042,1794.4,1794.2,3.90131641]
[1745814522009,0.8042,1794.4,1794.2,3.90146026]
[1745814522212,0.8042,1794.4,1794.1,8.6835553]
[1745814525038,0.8042,1794.4,1794.1,12.58507839]
[1745814525245,0.8042,1794.4,1794.2,3.90145156]
[1745814526810,0.8042,1794.4,1794.1,8.68357243]
[1745814527315,0.8042,1794.4,1794.1,8.68366501]
[1745814527644,0.8042,1794.4,1794.1,4.782]
[1745814528865,0.8042,1794.4,1794.1,8.68365378]
[1745814529227,0.8042,1794.4,1794.1,8.68352478]
[1745814530639,0.8042,1794.4,1794.1,4.782]
[1745814531144,0.8042,1794.4,1794.1,8.68367361]
[1745814531546,0.8042,1794.4,1794.1,4.782]
[1745814532080,0.8042,1794.4,1794.1,8.68360982]
[1745814534158,0.8042,1794.4,1794.1,4.782]
[1745814534359,0.62973644,1794.4,1794.2,4.782]
[1745814534591,0.8129,1794.3,1794.2,4.782]
[1745814536086,0.8129,1794.3,1793.8,20.63724381]
[1745814536273,0.8129,1794.3,1793.9,4.782]
[1745814537391,0.8129,1794.3,1794.0,4.762]
[1745814539587,0.8129,1794.3,1794.0,8.66389405]
[1745814540371,0.8129,1794.3,1794.0,4.762]
[1745814540964,0.8129,1794.3,1794.0,8.66387478]
[1745814541304,0.8129,1794.3,1794.0,8.66377395]
[1745814541462,0.8129,1794.3,1794.1,3.90166388]
[1745814541661,0.8129,1794.3,1794.0,4.762]
[1745814541855,0.8129,1794.3,1794.1,3.90163083]
[1745814542060,1.2559,1794.5,1794.2,8.66426696]
[1745814542255,1.2559,1794.5,1794.3,4.763]
[1745814542492,1.2559,1794.5,1794.4,4.763]
[1745814544261,0.7559,1794.4,1794.3,4.763]
[1745814544462,0.62973644,1794.4,1794.3,4.763]
[1745814544790,0.7559,1794.4,1794.3,4.763]
[1745814545983,0.7559,1794.4,1793.8,20.637165]
[1745814545984,1.38563644,1794.4,1793.8,20.637165]
[1745814546189,0.7559,1794.3,1793.9,4.762]
[1745814546556,0.7559,1794.3,1793.9,8.66408809]
[1745814549118,0.7559,1794.3,1793.9,4.762]
[1745814549323,0.7559,1794.3,1793.9,8.66409599]
[1745814549689,0.7559,1794.3,1794.0,3.90189374]
[1745814549883,0.7559,1794.3,1793.9,8.66396785]
[1745814550083,0.7559,1794.3,1794.0,3.901887]
[1745814550292,0.7559,1794.3,1793.9,8.66396785]
[1745814550293,0.7559,1794.3,1793.9,8.66397267]
[1745814550503,0.7559,1794.3,1794.0,3.90175181]
[1745814551635,0.5,1794.5,1794.3,3.90108892]
[1745814551836,0.5,1794.5,1794.4,8.66402541]
[1745814553707,0.5,1794.5,1794.4,4.763]
[1745814554385,1.2532,1794.5,1794.4,4.763]
[1745814554706,1.2532,1794.5,1794.4,8.66402541]
[1745814555516,1.2532,1794.5,1794.4,4.763]
[1745814559724,1.2532,1794.5,1794.4,4.762]
[1745814562588,0.5,1794.5,1794.4,4.762]
[1745814563924,0.5,1794.5,1794.4,8.92982541]
[1745814564225,0.8262,1795.1,1794.7,3.90028742]
[1745814564521,0.8262,1795.1,1794.8,4.762]
[1745814566232,0.62973644,1795.0,1794.8,4.762]
[1745814566393,0.8231,1794.9,1794.8,4.762]
[1745814570836,0.8231,1794.9,1793.9,0.29110142]
[1745814570837,0.7732,1794.8,1793.9,0.29110142]
[1745814570995,0.7732,1794.0,1793.6,4.761]
[1745814571199,0.62973644,1793.9,1793.6,4.761]
[1745814571424,0.7732,1794.0,1793.6,4.761]
[1745814572032,0.7732,1794.0,1793.6,8.66375481]
[1745814573130,0.7732,1794.0,1793.7,4.762]
[1745814575846,0.7732,1794.0,1793.8,4.762]
[1745814577220,0.68663923,1794.7,1793.9,0.2668]
[1745814577457,0.7737,1795.1,1794.4,0.2668]
[1745814577624,0.7737,1795.1,1794.7,3.900342]
[1745814577827,0.7737,1795.1,1794.8,11.43886216]
[1745814578050,0.7737,1795.1,1794.9,4.762]
[1745814579817,1.18404,1795.4,1794.9,4.762]
[1745814580022,1.18404,1795.4,1794.9,8.66183514]
[1745814580233,1.18404,1795.4,1794.9,8.66174445]
[1745814580461,1.18404,1795.4,1795.0,3.89959672]
[1745814581055,1.18404,1795.4,1794.9,8.66191681]
[1745814581563,1.18404,1795.4,1794.9,12.56167512]
[1745814582259,1.18404,1795.4,1795.0,3.89968797]
[1745814583464,1.18404,1795.4,1794.9,4.762]
[1745814583759,0.40734,1795.4,1795.1,0.89653644]
[1745814583922,0.40734,1795.4,1795.2,7.79834496]
[1745814584124,0.40734,1795.4,1795.3,4.761]
[1745814589954,0.40734,1795.4,1795.3,9.28980623]
[1745814590153,0.40734,1795.4,1795.3,8.66006979]
[1745814591803,0.40734,1795.4,1795.3,4.761]
[1745814591960,0.40734,1795.4,1795.3,8.66006979]
[1745814592295,0.40734,1795.4,1795.3,4.761]
[1745814592652,0.40734,1795.4,1795.3,8.66006979]
[1745814593998,0.40734,1795.4,1795.3,4.761]
[1745814594210,0.40734,1795.4,1795.3,9.55660623]
[1745814599892,0.40734,1795.4,1795.3,15.42960623]
[1745814600191,0.40734,1795.4,1795.3,9.55660623]
[1745814600527,0.40734,1795.4,1795.3,8.92686979]
[1745814600690,0.40734,1795.4,1795.3,9.66660623]
[1745814601304,0.7766,1796.9,1795.5,0.2668]
[1745814601508,0.7766,1796.8,1796.1,0.62973644]
[1745814601795,0.7766,1796.6,1795.8,4.16464978]
[1745814601996,0.7766,1796.6,1795.9,8.7687564]
[1745814602232,0.7766,1796.6,1796.0,3.89738866]
[1745814602722,0.7766,1796.6,1795.9,9.39837762]
[1745814602927,0.7766,1796.6,1796.0,8.76854625]
[1745814603114,0.7766,1796.6,1796.0,8.76838323]
[1745814603837,0.7766,1796.6,1796.1,3.8973245]
[1745814604750,0.62973644,1796.3,1796.0,16.723]
[1745814605046,0.7766,1796.2,1796.1,4.871]
[1745814606555,0.7766,1796.2,1796.0,16.723]
[1745814606710,0.7766,1796.2,1796.1,4.871]
[1745814606915,1.38623644,1796.2,1796.1,4.871]
[1745814607864,0.7565,1796.2,1796.0,21.594]
[1745814609161,0.7565,1796.2,1796.0,16.723]
[1745814609361,0.62973644,1796.1,1796.0,16.723]
[1745814609564,0.62973644,1796.1,1796.0,21.594]
[1745814609946,0.62973644,1796.1,1796.0,16.723]
[1745814610161,0.62973644,1796.1,1796.0,21.594]
[1745814610328,1.38433644,1796.1,1796.0,21.594]
[1745814610683,1.38433644,1796.1,1796.0,16.723]
[1745814610827,0.8007,1796.0,1795.7,4.871]
[1745814611028,0.8007,1796.0,1795.8,4.871]
[1745814611227,1.43043644,1795.8,1795.7,4.87]
[1745814611479,0.8007,1795.8,1795.7,4.87]
[1745814612069,1.43043644,1795.8,1795.7,4.87]
[1745814613757,1.43043644,1795.8,1795.2,16.721]
[1745814614069,0.62973644,1795.4,1795.3,4.871]
[1745814614268,0.62973644,1795.4,1795.0,16.722]
[1745814614433,0.62973644,1795.4,1795.1,4.871]
[1745814615282,0.62973644,1795.4,1795.2,4.871]
[1745814615432,0.7997,1795.3,1795.0,16.722]
[1745814615634,0.7997,1795.3,1795.1,4.871]
[1745814615937,0.7997,1795.3,1795.2,4.871]
[1745814616877,0.7997,1795.3,1795.0,16.722]
[1745814617075,0.62973644,1795.1,1794.5,4.16747334]
[1745814617234,0.62973644,1794.9,1794.5,16.723]
[1745814617437,0.62973644,1794.9,1794.6,4.871]
[1745814617979,0.62973644,1794.9,1794.7,4.871]
[1745814618534,0.62973644,1794.9,1794.5,16.723]
[1745814618762,0.62973644,1794.7,1794.6,4.871]
[1745814620679,0.7985,1794.8,1794.6,4.871]
[1745814620680,3.0,1795.3,1794.6,4.871]
[1745814620836,0.7729,1795.2,1794.8,3.90011789]
[1745814621167,0.7729,1795.2,1794.6,4.871]
[1745814621168,0.7729,1795.2,1794.7,3.90020802]
[1745814621547,0.7729,1795.2,1794.7,3.90019485]
[1745814621746,0.7729,1795.2,1794.7,3.90025385]
[1745814621973,0.7729,1795.2,1794.8,3.90011291]
[1745814622399,0.7729,1795.2,1794.9,3.89991189]
[1745814622700,0.7729,1795.2,1794.8,3.90011291]
[1745814622701,0.7729,1795.2,1795.0,4.872]
[1745814624054,0.62973644,1795.1,1795.0,4.872]
[1745814625168,0.7729,1795.2,1795.0,4.872]
[1745814629607,0.62973644,1795.1,1795.0,4.872]
[1745814631315,1.40833644,1795.1,1795.0,4.872]
[1745814631692,0.7786,1795.0,1794.9,4.871]
[1745814631896,0.7786,1794.9,1794.8,4.871]
[1745814632093,1.40833644,1794.9,1794.8,4.871]
[1745814633112,0.7786,1794.8,1794.7,4.871]
[1745814633285,1.40833644,1794.8,1794.7,4.871]
[1745814633632,0.7786,1794.7,1794.5,16.723]
[1745814633799,0.7786,1794.5,1794.4,4.871]
[1745814634127,0.7786,1794.4,1794.3,4.871]
[1745814634284,1.40833644,1794.4,1794.2,4.871]
[1745814634483,0.7786,1794.3,1794.2,4.871]
[1745814636999,0.7786,1794.3,1793.5,0.2668]
[1745814637208,1.43893644,1793.9,1793.6,4.872]
[1745814637937,1.43893644,1793.9,1793.5,20.6339814]
[1745814638131,1.43893644,1793.9,1793.6,4.873]
[1745814638444,1.43893644,1793.9,1793.7,4.873]
[1745814644942,0.8283,1794.1,1793.7,4.873]
[1745814645130,0.62973644,1794.0,1793.7,4.873]
[1745814646318,0.8066,1793.9,1793.7,4.873]
[1745814646647,0.62973644,1793.8,1793.5,16.731]
[1745814646850,0.8066,1793.9,1793.6,4.874]
[1745814647156,0.62973644,1794.0,1793.6,8.77674994]
[1745814649731,0.62973644,1794.0,1793.6,4.874]
[1745814651327,0.62973644,1794.0,1793.6,8.77675839]
[1745814651966,0.62973644,1794.0,1793.6,4.874]
[1745814652370,0.62973644,1794.0,1793.5,16.731]
[1745814652575,0.62973644,1794.0,1793.7,4.874]
[1745814657656,0.62973644,1793.8,1793.5,16.731]
[1745814657988,0.62973644,1793.8,1793.6,4.875]
[1745814659823,0.62973644,1793.8,1793.5,16.731]
[1745814660127,0.62973644,1793.8,1793.6,4.847]
[1745814660326,0.8301,1793.7,1793.5,16.731]
[1745814660618,1.45983644,1793.7,1793.6,4.847]
[1745814661620,1.45983644,1793.7,1793.5,16.731]
[1745814661823,1.45983644,1793.7,1793.5,21.578]
[1745814664510,0.8325,1793.6,1793.3,4.847]
[1745814664724,1.46223644,1793.4,1793.3,4.847]
[1745814665220,1.46223644,1793.4,1792.9,4.17107075]
[1745814665420,1.46223644,1793.4,1793.2,4.847]
[1745814669831,0.7911,1793.3,1793.2,4.847]
[1745814670043,0.7911,1793.3,1792.7,16.74]
[1745814670328,1.42083644,1793.0,1792.7,16.74]
[1745814670491,1.42083644,1793.0,1792.8,4.848]
[1745814673001,1.42083644,1793.0,1792.7,16.74]
[1745814673204,0.62973644,1792.8,1792.7,16.74]
[1745814673420,0.62973644,1792.8,1792.7,21.588]
[1745814673729,0.62973644,1792.8,1792.6,4.849]
[1745814673908,3.62973644,1793.0,1792.6,4.849]
[1745814674598,1.37973644,1792.8,1792.6,4.849]
[1745814675225,1.37973644,1792.8,1792.2,4.17249183]
[1745814675396,4.37973644,1792.8,1792.5,4.849]
[1745814677522,0.62973644,1792.6,1792.2,0.2668]
[1745814677834,0.62973644,1792.4,1792.1,4.849]
[1745814678034,0.62973644,1792.4,1792.2,4.849]
[1745814678235,0.62973644,1792.6,1792.2,4.849]
[1745814678795,0.62973644,1792.6,1792.2,8.75479953]
[1745814679035,0.62973644,1792.6,1792.2,4.849]
[1745814680136,0.7646,1792.7,1792.2,4.849]
[1745814680436,1.39433644,1792.9,1792.3,0.2668]
[1745814681297,0.62973644,1792.7,1792.3,0.2668]
[1745814682206,1.39433644,1792.9,1792.3,4.17229886]
[1745814682505,1.39433644,1792.9,1792.4,3.90534536]
[1745814684035,0.62973644,1792.9,1792.5,0.2668]
[1745814684254,0.62973644,1792.9,1792.6,4.85]
[1745814686008,1.21252035,1793.0,1792.6,4.85]
[1745814686448,0.62973644,1792.9,1792.6,4.85]
[1745814691345,0.62973644,1792.7,1792.6,4.85]